bitfinex-derivatives/quotes_SOLF0:USTF0_20241231
["timestamp","ask_amount","ask_price","bid_price","bid_amount"]
[1735616115015,2.626,190.74,190.7,3.02]
[1735616116409,2.6261,190.73,190.7,3.02]
[1735616116610,2.6261,190.73,190.72,8.48306836]
[1735616118411,3.02,190.8,190.72,8.48306836]
[1735616118613,2.6259,190.74,190.72,8.48306836]
[1735616120817,11.50306836,190.8,190.72,8.48306836]
[1735616121117,2.6261,190.73,190.72,8.48306836]
[1735616121313,8.48306836,190.76,190.7,8.48306836]
[1735616121516,8.48306836,190.76,190.68,8.48306836]
[1735616121810,8.48306836,190.76,190.64,3.02]
[1735616121811,3.02,190.75,190.7,8.48306836]
[1735616122012,3.02,190.77,190.72,8.48306836]
[1735616122708,3.02,190.77,190.74,8.48306836]
[1735616122912,3.02,190.77,190.72,8.48306836]
[1735616123316,2.6261,190.73,190.72,8.48306836]
[1735616123813,2.6261,190.73,190.63,3.0487]
[1735616123814,3.02,190.77,190.7,8.48306836]
[1735616124014,2.6263,190.71,190.7,8.48306836]
[1735616124310,3.02,190.77,190.7,8.48306836]
[1735616124514,2.6262,190.73,190.72,8.48306836]
[1735616124917,3.02,190.77,190.7,8.48306836]
[1735616126316,2.6263,190.71,190.7,8.48306836]
[1735616130518,11.50306836,190.77,190.64,3.02]
[1735616130519,2.6269,190.68,190.64,3.02]
[1735616130815,2.6269,190.68,190.67,8.48306836]
[1735616135723,2.6272,190.65,190.62,1.34083245]
[1735616135923,8.48306836,190.71,190.63,8.48306836]
[1735616136823,2.6273,190.64,190.63,8.48306836]
[1735616137830,8.48306836,190.71,190.63,8.48306836]
[1735616138126,2.627,190.66,190.65,8.48306836]
[1735616139427,4.5657,190.74,190.65,8.48306836]
[1735616139621,4.5657,190.74,190.69,8.48306836]
[1735616139821,2.6263,190.71,190.69,8.48306836]
[1735616140823,10.03426836,190.74,190.67,8.48306836]
[1735616141031,8.48306836,190.72,190.65,8.48306836]
[1735616142821,2.627,190.67,190.65,8.48306836]
[1735616143530,2.6268,190.68,190.63,8.48306836]
[1735616143730,11.50306836,190.7,190.63,8.48306836]
[1735616144229,2.6273,190.64,190.63,8.48306836]
[1735616146430,8.48306836,190.68,190.61,8.48306836]
[1735616146630,2.6276,190.62,190.61,8.48306836]
[1735616149329,1.5243,190.67,190.58,1.6153]
[1735616149533,2.6279,190.6,190.58,1.6153]
[1735616149734,2.6279,190.6,190.59,8.48306836]
[1735616150933,2.6281,190.58,190.54,3.02]
[1735616151124,2.6281,190.58,190.57,8.48306836]
[1735616152326,2.6285,190.56,190.53,3.02]
[1735616152527,8.48306836,190.64,190.55,8.48306836]
[1735616152725,8.48306836,190.64,190.57,8.48306836]
[1735616153437,2.6281,190.58,190.57,8.48306836]
[1735616154336,2.6285,190.56,190.55,8.48306836]
[1735616161440,3.02,190.6,190.55,8.48306836]
[1735616161640,2.6283,190.57,190.55,8.48306836]
[1735616162938,3.02,190.61,190.55,8.48306836]
[1735616163138,2.6284,190.56,190.55,8.48306836]
[1735616164642,2.6281,190.59,190.55,8.48306836]
[1735616164837,2.6281,190.59,190.58,8.48306836]
[1735616168247,2.6283,190.57,190.56,8.48306836]
[1735616174954,2.6285,190.55,190.54,8.48306836]
[1735616175655,3.02,190.59,190.52,8.48306836]
[1735616175853,2.6289,190.53,190.52,8.48306836]
[1735616176546,2.6292,190.51,190.5,8.48306836]
[1735616179655,2.6288,190.54,190.5,8.48306836]
[1735616179955,2.6288,190.54,190.49,2.6293]
[1735616179956,2.6288,190.54,190.53,8.48306836]
[1735616180359,1.5767,190.58,190.47,3.1968]
[1735616180557,1.5767,190.58,190.51,8.48306836]
[1735616180558,10.05976836,190.58,190.51,8.48306836]
[1735616181457,2.6289,190.53,190.51,8.48306836]
[1735616181659,10.05976836,190.58,190.51,8.48306836]
[1735616182457,10.05976836,190.58,190.46,2.6298]
[1735616182656,2.6291,190.52,190.5,8.48306836]
[1735616183258,10.05976836,190.58,190.5,8.48306836]
[1735616183461,2.6286,190.55,190.52,8.48306836]
[1735616183654,10.05976836,190.58,190.52,8.48306836]
[1735616185559,2.6287,190.54,190.52,8.48306836]
[1735616185853,10.05976836,190.58,190.52,8.48306836]
[1735616186656,2.6287,190.55,190.52,8.48306836]
[1735616186859,10.05976836,190.58,190.52,8.48306836]
[1735616188551,2.6287,190.55,190.52,8.48306836]
[1735616189654,10.05976836,190.58,190.46,3.02]
[1735616189859,10.05976836,190.58,190.5,8.48306836]
[1735616190559,2.6283,190.57,190.52,8.48306836]
[1735616190760,2.6283,190.57,190.54,8.48306836]
[1735616192763,2.6284,190.56,190.54,8.48306836]
[1735616193359,8.48306836,190.62,190.54,8.48306836]
[1735616193566,3.02,190.61,190.56,8.48306836]
[1735616194265,2.6283,190.57,190.54,8.48306836]
[1735616194468,8.48306836,190.6,190.54,8.48306836]
[1735616194962,2.6285,190.56,190.54,8.48306836]
[1735616198873,2.6285,190.55,190.54,8.48306836]
[1735616201470,2.6283,190.58,190.54,12.6280346]
[1735616201672,8.48306836,190.62,190.56,8.48306836]
[1735616201871,1.5471,190.63,190.56,8.48306836]
[1735616202365,1.5471,190.63,190.57,4.14287666]
[1735616202564,1.5471,190.63,190.56,8.48306836]
[1735616202763,1.5471,190.63,190.57,4.14178781]
[1735616202966,1.5471,190.63,190.56,8.48306836]
[1735616203166,2.6279,190.6,190.57,4.14152448]
[1735616203374,2.6279,190.6,190.56,8.48306836]
[1735616203667,2.6279,190.6,190.57,4.14096103]
[1735616203866,2.6279,190.6,190.56,8.48306836]
[1735616204067,2.6279,190.6,190.57,4.14121725]
[1735616204268,2.6279,190.6,190.56,8.48306836]
[1735616204473,2.6279,190.6,190.57,4.14065947]
[1735616204671,2.6279,190.6,190.56,8.48306836]
[1735616204872,2.6279,190.6,190.57,4.14066726]
[1735616205067,2.6279,190.6,190.56,8.48306836]
[1735616205271,2.6279,190.6,190.57,4.14066726]
[1735616205473,2.6279,190.6,190.56,8.48306836]
[1735616205777,2.6279,190.6,190.57,4.14021133]
[1735616205980,3.02,190.69,190.58,12.62293954]
[1735616206178,16.12066836,190.7,190.63,8.48306836]
[1735616207066,1.86319176,190.71,190.67,8.48306836]
[1735616207266,8.48306836,190.73,190.67,8.48306836]
[1735616207867,3.02,190.74,190.67,8.48306836]
[1735616208071,8.48306836,190.73,190.67,8.48306836]
[1735616208478,2.6265,190.7,190.67,8.48306836]
[1735616208676,11.50306836,190.73,190.67,8.48306836]
[1735616209279,2.6267,190.69,190.67,8.48306836]
[1735616211474,2.6263,190.72,190.67,8.48306836]
[1735616211678,1.4937,190.75,190.69,8.48306836]
[1735616211880,11.60696836,190.77,190.71,8.48306836]
[1735616212074,54.62,190.85,190.71,8.48306836]
[1735616212075,0.80852158,190.76,190.71,8.48306836]
[1735616212281,1.4952,190.8,190.73,8.48306836]
[1735616212678,2.6257,190.76,190.73,8.48306836]
[1735616213279,1.4952,190.8,190.75,8.48306836]
[1735616213477,3.02,190.82,190.77,8.48306836]
[1735616214081,2.625,190.81,190.77,8.48306836]
[1735616215084,2.6253,190.79,190.77,8.48306836]
[1735616218085,8.48306836,190.82,190.75,8.48306836]
[1735616218882,2.6251,190.8,190.75,8.48306836]
[1735616219084,8.48306836,190.82,190.75,8.48306836]
[1735616220486,2.6254,190.79,190.75,8.48306836]
[1735616220882,8.48306836,190.82,190.75,8.48306836]
[1735616222587,2.6256,190.77,190.75,8.48306836]
[1735616222987,2.6257,190.76,190.75,8.48306836]
[1735616223588,11.50306836,190.8,190.7,1.4744]
[1735616223787,2.6262,190.73,190.72,8.48306836]
[1735616224188,2.6265,190.7,190.66,3.02]
[1735616224388,8.48306836,190.78,190.69,8.48306836]
[1735616224690,8.48306836,190.78,190.71,8.48306836]
[1735616225281,8.48306836,190.76,190.71,8.48306836]
[1735616225983,2.6262,190.73,190.71,8.48306836]
[1735616228793,8.48306836,190.76,190.71,8.48306836]
[1735616228992,2.6262,190.72,190.71,8.48306836]
[1735616232493,2.6262,190.72,190.69,8.48306836]
[1735616232891,3.02,190.76,190.65,4.6331]
[1735616233095,8.48306836,190.75,190.67,8.48306836]
[1735616233286,9.97226836,190.75,190.67,8.48306836]
[1735616233487,2.6267,190.69,190.67,8.48306836]
[1735616234491,2.6265,190.71,190.67,8.48306836]
[1735616234893,1.6038,190.74,190.67,8.48306836]
[1735616235094,3.02,190.78,190.71,8.48306836]
[1735616235294,8.48306836,190.77,190.71,8.48306836]
[1735616236097,2.6261,190.74,190.71,8.48306836]
[1735616236598,11.50306836,190.77,190.71,8.48306836]
[1735616237297,2.6261,190.73,190.71,8.48306836]
[1735616237797,2.6261,190.73,190.63,4.10881316]
[1735616237798,2.6262,190.72,190.69,8.48306836]
[1735616240300,2.6264,190.71,190.69,8.48306836]
[1735616241993,8.48306836,190.75,190.64,7.27775873]
[1735616242199,8.48306836,190.73,190.66,8.48306836]
[1735616242399,8.48306836,190.71,190.64,15.76082709]
[1735616242697,8.48306836,190.71,190.64,8.48306836]
[1735616243997,2.6271,190.66,190.64,8.48306836]
[1735616245092,7.6294,190.76,190.64,8.48306836]
[1735616245289,8.48306836,190.75,190.68,8.48306836]
[1735616245493,2.6264,190.71,190.66,8.48306836]
[1735616245788,8.48306836,190.73,190.66,8.48306836]
[1735616245990,8.48306836,190.75,190.68,8.48306836]
[1735616247197,7.6294,190.76,190.7,8.48306836]
[1735616247694,4.5992,190.76,190.7,8.48306836]
[1735616248096,2.626,190.74,190.7,8.48306836]
[1735616250013,2.6261,190.73,190.7,8.48306836]
[1735616251106,3.0704,190.83,190.7,8.48306836]
[1735616251310,8.48306836,190.78,190.7,8.48306836]
[1735616251809,2.6261,190.73,190.7,8.48306836]
[1735616253217,2.6257,190.76,190.7,8.48306836]
[1735616253413,8.48306836,190.78,190.7,8.48306836]
[1735616253914,3.02,190.77,190.7,8.48306836]
[1735616254415,2.6261,190.73,190.7,8.48306836]
[1735616254917,3.02,190.77,190.7,8.48306836]
[1735616255115,2.6259,190.74,190.7,8.48306836]
[1735616257918,3.02,190.77,190.7,8.48306836]
[1735616258115,2.6262,190.72,190.7,8.48306836]
[1735616263219,8.48306836,190.76,190.7,8.48306836]
[1735616263524,4.6006,190.77,190.7,8.48306836]
[1735616263724,8.48306836,190.76,190.7,8.48306836]
[1735616264426,2.6262,190.72,190.7,8.48306836]
[1735616265317,3.02,190.73,190.65,7.27775873]
[1735616265515,8.48306836,190.72,190.66,12.63792607]
[1735616265728,3.02,190.73,190.67,4.15485771]
[1735616265928,3.02,190.73,190.68,4.15485771]
[1735616266131,2.6266,190.7,190.66,8.48306836]
[1735616266420,5.6466,190.7,190.67,4.15670415]
[1735616266726,5.6466,190.7,190.68,4.15744456]
[1735616266929,5.6466,190.7,190.66,8.48306836]
[1735616267124,5.6466,190.7,190.67,4.15735051]
[1735616267326,5.6466,190.7,190.68,4.15735051]
[1735616267625,5.6466,190.7,190.66,8.48306836]
[1735616267929,5.6466,190.7,190.67,4.15799854]
[1735616268125,5.6466,190.7,190.68,4.15799854]
[1735616268328,5.6466,190.7,190.66,8.48306836]
[1735616268524,5.6466,190.7,190.67,4.15745627]
[1735616268724,5.6466,190.7,190.68,4.15745627]
[1735616268926,5.6466,190.7,190.66,8.48306836]
[1735616269123,5.6466,190.7,190.67,4.15815468]
[1735616269324,5.6466,190.7,190.68,4.15815468]
[1735616269525,2.6263,190.72,190.69,4.1577847]
[1735616269733,3.02,190.72,190.68,8.48306836]
[1735616269933,3.02,190.72,190.69,4.15737181]
[1735616270133,3.02,190.72,190.68,8.48306836]
[1735616270334,3.02,190.72,190.69,4.15748314]
[1735616270536,3.02,190.72,190.68,8.48306836]
[1735616270732,3.02,190.72,190.69,4.15553429]
[1735616271035,2.6265,190.7,190.68,8.48306836]
[1735616271230,2.6265,190.7,190.69,4.15513213]
[1735616271531,2.6265,190.7,190.69,4.15498058]
[1735616273029,3.02,190.72,190.69,4.15498058]
[1735616273337,5.6461,190.73,190.7,4.15421814]
[1735616273638,5.6461,190.73,190.68,8.48306836]
[1735616273824,5.6461,190.73,190.69,4.15352862]
[1735616274032,5.6461,190.73,190.68,8.48306836]
[1735616274329,5.6461,190.73,190.7,8.48306836]
[1735616274330,3.02,190.73,190.7,8.48306836]
[1735616274530,3.02,190.74,190.71,4.15341592]
[1735616274735,3.02,190.74,190.72,4.15341592]
[1735616274931,5.6457,190.76,190.71,2.6263]
[1735616275134,5.6457,190.76,190.72,4.1519781]
[1735616275430,5.6457,190.76,190.73,4.15179686]
[1735616275629,5.6457,190.76,190.7,11.10956836]
[1735616275835,5.6457,190.76,190.71,4.15082445]
[1735616276035,3.02,190.76,190.72,4.15082445]
[1735616276237,11.50306836,190.76,190.7,8.48306836]
[1735616276437,11.50306836,190.76,190.68,8.48306836]
[1735616276637,11.50306836,190.76,190.69,4.15182519]
[1735616276827,11.50306836,190.76,190.7,4.15182519]
[1735616277034,8.48306836,190.74,190.68,8.48306836]
[1735616277326,8.48306836,190.72,190.67,7.27775873]
[1735616277528,2.6265,190.7,190.67,7.27775873]
[1735616279536,3.02,190.71,190.67,7.27775873]
[1735616279839,2.6268,190.68,190.67,7.27775873]
[1735616280938,8.48306836,190.68,190.65,58.2220699]
[1735616281140,3.02,190.71,190.64,14.39337819]
[1735616281141,8.48306836,190.66,190.64,14.39337819]
[1735616281330,3.02,190.65,190.62,136.09517891]
[1735616281534,11.11046836,190.63,190.62,105.67783226]
[1735616281832,8.48306836,190.63,190.61,181.17575]
[1735616282937,2.6276,190.62,190.61,181.17575]
[1735616283642,2.6276,190.62,190.61,85.84680513]
[1735616284037,5.6476,190.62,190.61,85.84680513]
[1735616284336,2.6281,190.58,190.56,217.4109]
[1735616284538,11.11116836,190.58,190.56,217.4109]
[1735616285939,15.77,190.76,190.56,217.4109]
[1735616286143,8.48306836,190.58,190.56,217.4109]
[1735616286438,11.50306836,190.58,190.56,217.4109]
[1735616287143,8.48306836,190.58,190.56,217.4109]
[1735616287643,8.48306836,190.58,190.53,220.4633]
[1735616287644,8.48306836,190.58,190.53,3.0524]
[1735616288336,11.11116836,190.58,190.53,3.0524]
[1735616288838,8.48306836,190.58,190.53,14.16426836]
[1735616289031,5.648,190.59,190.53,14.16426836]
[1735616289230,5.648,190.59,190.53,11.53546836]
[1735616289434,3.02,190.59,190.53,11.53546836]
[1735616289630,2.6281,190.58,190.53,11.53546836]
[1735616290438,2.6283,190.57,190.53,11.53546836]
[1735616291942,9.89061349,190.57,190.53,11.53546836]
[1735616292238,9.89061349,190.57,190.52,8.48306836]
[1735616292734,2.6283,190.57,190.52,8.48306836]
[1735616294145,8.48306836,190.6,190.54,8.48306836]
[1735616294336,2.6281,190.59,190.56,8.48306836]
[1735616294942,2.6278,190.61,190.57,2.6283]
[1735616295246,2.6278,190.61,190.56,8.48306836]
[1735616295938,11.50306836,190.62,190.56,8.48306836]
[1735616296245,2.6279,190.6,190.56,8.48306836]
[1735616297649,11.50306836,190.62,190.55,1.5441]
[1735616297939,8.48306836,190.6,190.5,3.0185]
[1735616298145,2.6285,190.55,190.52,8.48306836]
[1735616298838,2.6288,190.54,190.52,8.48306836]
[1735616299350,8.48306836,190.56,190.5,3.0185]
[1735616299739,2.629,190.52,190.5,3.0185]
[1735616300336,2.629,190.52,190.5,11.50156836]
[1735616301944,8.48306836,190.56,190.5,11.50156836]
[1735616302146,3.02,190.57,190.5,11.50156836]
[1735616303043,2.6286,190.55,190.5,11.50156836]
[1735616304046,2.6287,190.54,190.5,11.50156836]
[1735616307348,9.89101349,190.54,190.5,11.50156836]
[1735616308247,7.26231349,190.53,190.5,11.50156836]
[1735616309042,44.79854319,190.53,190.5,11.50156836]
[1735616309939,44.79854319,190.53,190.5,14.13076836]
[1735616310139,7.26231349,190.52,190.5,14.13076836]
[1735616310340,7.26231349,190.52,190.5,11.50156836]
[1735616311341,2.6291,190.51,190.5,3.0185]
[1735616311746,7.26231349,190.52,190.48,8.48306836]
[1735616312047,73.84779717,190.51,190.48,8.48306836]
[1735616312651,21.91425252,190.49,190.46,9.94936836]
[1735616313049,21.91425252,190.49,190.46,1.4663]
[1735616313252,2.6296,190.48,190.46,9.94936836]
[1735616313854,24.54365252,190.49,190.46,9.94936836]
[1735616314055,9.93274737,190.49,190.46,9.94936836]
[1735616314956,15.78641573,190.5,190.43,8.48306836]
[1735616315855,29.21759989,190.49,190.43,8.48306836]
[1735616316055,2.6298,190.46,190.43,8.48306836]
[1735616318456,2.6301,190.44,190.4,8.48306836]
[1735616318659,11.50306836,190.46,190.4,8.48306836]
[1735616318960,11.50306836,190.46,190.38,8.48306836]
[1735616319562,2.6302,190.43,190.39,2.6306]
[1735616320063,2.6304,190.42,190.37,2.6309]
[1735616320262,2.6304,190.42,190.38,8.48306836]
[1735616321065,5.6505,190.41,190.36,13.04936836]
[1735616321466,2.6307,190.4,190.36,4.5663]
[1735616322059,2.6311,190.37,190.33,8.48306836]
[1735616322363,3.02,190.36,190.33,8.48306836]
[1735616322554,3.02,190.36,190.31,11.11486836]
[1735616322759,3.02,190.36,190.32,4.14128011]
[1735616322961,3.02,190.36,190.31,11.11486836]
[1735616323160,3.02,190.36,190.32,4.1413702]
[1735616323357,5.6513,190.36,190.31,11.11486836]
[1735616323561,5.6513,190.36,190.32,4.14113628]
[1735616323856,5.6513,190.36,190.31,11.11486836]
[1735616324756,11.50306836,190.38,190.33,2.6316]
[1735616324960,11.50306836,190.38,190.31,8.48306836]
[1735616326365,2.6311,190.37,190.31,11.11496836]
[1735616328067,11.50306836,190.38,190.31,8.48306836]
[1735616328270,14.13396836,190.38,190.33,2.6316]
[1735616328467,11.50306836,190.38,190.31,8.48306836]
[1735616329163,2.6312,190.36,190.31,11.11476836]
[1735616329370,11.11426836,190.36,190.31,2.6317]
[1735616331364,11.50306836,190.38,190.31,8.48306836]
[1735616331959,14.13396836,190.38,190.33,2.6315]
[1735616333269,11.11396836,190.38,190.33,2.6315]
[1735616333469,3.02,190.37,190.33,2.6315]
[1735616333972,3.02,190.37,190.32,2.6317]
[1735616334767,11.11396836,190.38,190.32,2.6317]
[1735616334970,3.02,190.37,190.32,2.6317]
[1735616336169,3.02,190.37,190.31,11.11486836]
[1735616336561,8.48306836,190.36,190.3,3.1862]
[1735616337476,2.6313,190.35,190.3,3.1862]
[1735616337666,8.48306836,190.34,190.3,3.1862]
[1735616337966,8.48306836,190.34,190.27,11.11546836]
[1735616338165,8.48306836,190.32,190.24,3.0839]
[1735616338371,2.632,190.3,190.25,11.11566836]
[1735616339461,2.632,190.3,190.25,8.48306836]
[1735616339462,2.6322,190.29,190.25,8.48306836]
[1735616339672,2.6322,190.29,190.24,3.0839]
[1735616340575,8.48306836,190.3,190.24,3.0839]
[1735616340869,2.6324,190.27,190.23,10.00296836]
[1735616344175,8.48306836,190.3,190.23,10.00296836]
[1735616344377,2.6326,190.26,190.23,10.00296836]
[1735616344777,8.48306836,190.28,190.21,8.48306836]
[1735616345278,8.48306836,190.26,190.19,11.45476836]
[1735616345576,8.48306836,190.24,190.19,2.9717]
[1735616345772,3.02,190.23,190.19,2.9717]
[1735616346774,2.6331,190.22,190.19,2.9717]
[1735616347075,2.6331,190.22,190.18,1.4611]
[1735616348078,8.48306836,190.22,190.13,4.12108448]
[1735616348268,8.48306836,190.22,190.14,8.48306836]
[1735616348578,8.48306836,190.2,190.14,8.48306836]
[1735616348777,8.48306836,190.18,189.92,113.14301263]
[1735616348968,3.02,190.17,190.11,8.48306836]
[1735616349971,2.6339,190.17,190.11,8.48306836]
[1735616350177,11.50306836,190.19,190.13,8.48306836]
[1735616350573,2.6338,190.18,190.13,11.11736836]
[1735616352280,5.6535,190.19,190.15,2.6341]
[1735616354078,3.02,190.19,190.05,7.5442]
[1735616354379,3.02,190.19,190.13,8.48306836]
[1735616354776,2.6335,190.19,190.14,2.6341]
[1735616354972,3.02,190.22,190.17,8.48306836]
[1735616355375,3.02,190.22,190.18,2.6336]
[1735616355776,3.02,190.22,190.17,8.48306836]
[1735616355971,3.02,190.22,190.17,11.11686836]
[1735616356579,2.6331,190.22,190.17,11.11686836]
[1735616356780,5.6531,190.22,190.17,11.11686836]
[1735616358277,3.02,190.22,190.17,11.11686836]
[1735616358473,15.78641573,190.27,190.21,8.48306836]
[1735616358673,3.02,190.26,190.21,8.48306836]
[1735616358875,7.30334737,190.27,190.24,2.6328]
[1735616359482,11.50306836,190.29,190.24,2.6328]
[1735616360378,14.13526836,190.29,190.23,11.11606836]
[1735616360577,3.02,190.29,190.23,8.48306836]
[1735616360981,3.02,190.29,190.25,8.48306836]
[1735616361886,2.6321,190.3,190.25,8.48306836]
[1735616362073,5.6519,190.31,190.25,8.48306836]
[1735616362278,5.6519,190.31,190.26,2.6324]
[1735616362583,39.52196424,190.33,190.29,8.48306836]
[1735616362584,29.21759989,190.33,190.29,8.48306836]
[1735616363683,10.32334737,190.37,190.31,8.48306836]
[1735616364281,12.95444737,190.37,190.29,13.27575877]
[1735616364475,7.30334737,190.37,190.3,5.67969341]
[1735616364683,7.30334737,190.37,190.31,4.13122526]
[1735616364878,3.02,190.39,190.3,3.1039]
[1735616365079,3.02,190.39,190.31,4.13096983]
[1735616365275,3.02,190.39,190.3,3.1039]
[1735616366382,2.6311,190.37,190.31,2.6317]
[1735616366883,2.6311,190.37,190.3,3.1039]
[1735616367082,2.6311,190.37,190.32,2.6317]
[1735616367583,2.6309,190.38,190.32,2.6317]
[1735616367779,2.6309,190.38,190.33,2.6316]
[1735616367987,2.6309,190.38,190.3,3.1039]
[1735616369290,2.6311,190.37,190.32,2.6317]
[1735616369482,2.6311,190.37,190.3,3.1039]
[1735616369679,3.02,190.4,190.3,3.1039]
[1735616369883,2.6317,190.33,190.27,2.6323]
[1735616371388,2.6319,190.31,190.26,17.38415877]
[1735616371887,3.02,190.35,190.26,17.38415877]
[1735616372291,2.6317,190.33,190.26,17.38415877]
[1735616372487,3.02,190.35,190.26,17.38415877]
[1735616372893,2.6319,190.31,190.26,17.38415877]
[1735616374498,2.6319,190.31,190.26,14.75165877]
[1735616374698,2.6319,190.31,190.27,2.6324]
[1735616375099,2.6317,190.33,190.28,2.6323]
[1735616375798,2.6318,190.32,190.26,17.38405877]
[1735616376000,3.02,190.35,190.26,1.4759]
[1735616376696,2.6318,190.32,190.27,2.6324]
[1735616378001,2.6316,190.34,190.29,2.6321]
[1735616378695,2.6319,190.32,190.27,2.6324]
[1735616381409,2.632,190.31,190.26,1.4759]
[1735616381801,2.6322,190.29,190.25,1.5922]
[1735616383507,2.6322,190.29,190.24,2.6327]
[1735616384212,2.6322,190.29,190.24,8.50332742]
[1735616384403,2.6322,190.29,190.25,2.6327]
[1735616385805,8.50332742,190.33,190.26,8.50332742]
[1735616386012,8.50332742,190.31,190.24,8.50332742]
[1735616386307,3.02,190.32,190.22,1.5431]
[1735616386308,8.50332742,190.29,190.22,10.04642742]
[1735616386508,2.6326,190.27,190.22,8.50332742]
[1735616386701,5.6526,190.27,190.23,2.633]
[1735616387208,5.6526,190.27,190.22,11.13642742]
[1735616393013,3.02,190.27,190.23,2.6329]
[1735616393318,3.02,190.27,190.24,8.50332742]
[1735616400220,5.6522,190.29,190.24,11.13612742]
[1735616400523,3.02,190.29,190.24,8.50332742]
[1735616400919,2.6324,190.28,190.24,8.50332742]
[1735616401124,11.52332742,190.29,190.24,8.50332742]
[1735616402024,2.6325,190.27,190.22,2.6331]
[1735616402226,2.6325,190.27,190.23,8.50332742]
[1735616403119,2.6324,190.28,190.23,8.50332742]
[1735616405326,2.6325,190.27,190.23,8.50332742]
[1735616407529,5.6523,190.28,190.25,8.50332742]
[1735616408028,2.6326,190.26,190.23,8.50332742]
[1735616410530,3.02,190.28,190.21,8.50332742]
[1735616410531,2.6328,190.24,190.21,8.50332742]
[1735616414024,29.21759989,190.26,190.18,2.6337]
[1735616414025,2.6331,190.23,190.18,2.6337]
[1735616414326,37.72092731,190.26,190.18,11.13702742]
[1735616414531,37.72092731,190.26,190.18,8.50332742]
[1735616415131,2.6332,190.22,190.18,8.50332742]
[1735616417235,2.6332,190.22,190.18,11.13692742]
[1735616417434,2.6332,190.22,190.2,8.50332742]
[1735616418535,2.6333,190.21,190.2,8.50332742]
[1735616421236,2.633,190.23,190.2,12.66721738]
[1735616421541,2.633,190.23,190.2,8.50332742]
[1735616422338,9.93604737,190.25,190.2,11.13662742]
[1735616422545,7.30334737,190.25,190.24,8.50332742]
[1735616422732,7.30334737,190.25,190.24,12.66720725]
[1735616422932,21.91425252,190.26,190.24,12.66720725]
[1735616423135,29.24139957,190.28,190.25,4.16129017]
[1735616423342,29.24139957,190.28,190.25,2.6326]
[1735616423841,29.24139957,190.28,190.24,8.50332742]
[1735616424044,31.87379957,190.28,190.24,8.50332742]
[1735616424245,2.6324,190.28,190.24,8.50332742]
[1735616424546,8.50332742,190.3,190.24,8.50332742]
[1735616424547,2.6325,190.27,190.24,8.50332742]
[1735616425241,8.50332742,190.28,190.22,8.50332742]
[1735616425439,3.02,190.27,190.22,8.50332742]
[1735616425641,3.02,190.27,190.2,8.50332742]
[1735616425844,3.02,190.27,190.21,4.16605841]
[1735616426045,3.02,190.27,190.2,8.50332742]
[1735616426344,8.50332742,190.26,190.14,4.5631]
[1735616426539,8.50332742,190.26,190.19,8.50332742]
[1735616426734,8.50332742,190.26,190.2,4.16603162]
[1735616426939,2.6329,190.24,190.19,8.50332742]
[1735616427136,2.6329,190.24,190.2,4.16616529]
[1735616427341,2.6329,190.24,190.19,8.50332742]
[1735616427645,8.50332742,190.26,190.19,8.50332742]
[1735616428038,2.633,190.23,190.19,8.50332742]
[1735616428442,2.633,190.23,190.2,4.16557616]
[1735616428645,2.633,190.23,190.19,8.50332742]
[1735616429050,2.633,190.23,190.2,4.16531918]
[1735616429241,2.633,190.23,190.19,8.50332742]
[1735616429440,2.633,190.23,190.2,4.16545511]
[1735616429744,2.633,190.23,190.19,8.50332742]
[1735616429945,2.633,190.23,190.2,4.1654948]
[1735616430144,2.633,190.23,190.19,8.50332742]
[1735616430344,2.633,190.23,190.2,4.16592708]
[1735616430555,2.633,190.23,190.19,8.50332742]
[1735616430743,2.633,190.23,190.2,4.16604678]
[1735616431050,2.633,190.23,190.19,8.50332742]
[1735616432848,21.91425252,190.25,190.19,8.50332742]
[1735616433146,21.91425252,190.25,190.21,8.50332742]
[1735616433351,36.24766288,190.25,190.21,8.50332742]
[1735616433553,36.24766288,190.25,190.22,4.16312976]
[1735616433852,36.24766288,190.25,190.21,8.50332742]
[1735616434053,36.24766288,190.25,190.22,4.16360622]
[1735616434254,2.6326,190.26,190.23,4.16329185]
[1735616434553,2.6326,190.26,190.22,2.6331]
[1735616434744,2.6326,190.26,190.23,4.16351387]
[1735616434948,2.6326,190.26,190.22,2.6331]